bitfinex/quotes_ETHUSD_20240601
["timestamp","ask_amount","ask_price","bid_price","bid_amount"]
[1717253624136,0.55,3806.9,3806.6,1.698]
[1717253626551,2.62677,3807.0,3806.6,1.698]
[1717253627830,0.55,3806.9,3806.6,1.698]
[1717253630625,0.55,3806.9,3805.7,5.3653]
[1717253630626,2.62687,3806.8,3805.7,5.3653]
[1717253630830,2.62703,3806.6,3806.2,1.698]
[1717253631060,0.55,3806.5,3806.2,1.698]
[1717253632855,2.62715,3806.4,3806.2,1.698]
[1717253633158,0.55,3806.3,3806.2,1.698]
[1717253638654,2.62732,3806.2,3805.8,1.698]
[1717253638870,3.61569303,3806.1,3805.8,1.698]
[1717253639185,3.61569303,3806.1,3805.0,7.13344453]
[1717253639186,2.62743,3806.0,3805.0,7.13344453]
[1717253639481,0.55,3805.9,3805.5,1.698]
[1717253642982,5.5715,3805.7,3803.9,5.0548]
[1717253643189,2.6283,3804.8,3804.1,1.698]
[1717253643384,0.06571746,3804.7,3804.1,1.698]
[1717253643565,0.55,3804.6,3804.1,1.698]
[1717253644373,2.62848,3804.5,3804.1,1.698]
[1717253645171,0.55,3804.4,3804.1,1.698]
[1717253645731,2.6286,3804.3,3804.1,1.698]
[1717253645870,0.55,3804.2,3804.1,1.698]
[1717253651082,2.6286,3804.3,3804.1,1.698]
[1717253651518,0.55,3804.2,3804.1,1.698]
[1717253654092,0.55,3804.2,3803.2,2.6293]
[1717253654293,0.55,3804.2,3803.9,1.698]
[1717253654680,0.31786,3804.1,3803.9,1.698]
[1717253654886,0.55,3804.0,3803.9,1.698]
[1717253655414,2.6286,3804.3,3803.9,1.698]
[1717253655415,0.55,3804.2,3803.9,1.698]
[1717253656119,2.62874,3804.1,3803.5,1.698]
[1717253656314,0.55,3804.0,3803.5,1.698]
[1717253657427,0.55,3804.0,3803.6,1.698]
[1717253658122,1.75566984,3807.0,3803.6,1.698]
[1717253658123,7.43,3805.6,3803.8,1.698]
[1717253658326,5.0665,3805.7,3805.3,1.698]
[1717253659121,2.62774,3805.6,3805.3,1.698]
[1717253659320,0.769424,3805.5,3805.3,1.698]
[1717253660036,2.62736,3806.1,3805.3,1.698]
[1717253660336,3.0,3806.0,3805.3,1.698]
[1717253660499,2.62756,3805.9,3805.3,1.698]
[1717253660696,3.0,3805.8,3804.7,5.0623]
[1717253660909,2.62767,3805.7,3804.9,1.698]
[1717253661109,3.0,3805.6,3804.9,1.698]
[1717253661809,0.55,3805.5,3804.9,1.698]
[1717253662635,3.0,3805.6,3804.7,5.0623]
[1717253662636,3.0,3805.6,3805.3,1.698]
[1717253662939,2.6273,3806.2,3804.8,2.62821]
[1717253663114,2.6273,3806.2,3805.5,1.698]
[1717253664258,3.0,3806.1,3805.5,1.698]
[1717253664408,2.62753,3805.9,3804.8,2.62821]
[1717253664607,3.0,3805.8,3805.1,1.698]
[1717253664806,0.55,3805.7,3805.1,1.698]
[1717253668729,0.55,3805.7,3805.5,1.698]
[1717253668942,3.0,3805.8,3805.5,1.698]
[1717253669653,3.0,3805.8,3805.6,5.183]
[1717253669811,3.0,3806.3,3805.6,5.183]
[1717253670019,3.0,3806.3,3806.0,1.698]
[1717253675376,2.62717,3806.4,3806.0,1.698]
[1717253675536,0.55,3806.3,3806.0,1.698]
[1717253676972,3.55,3806.3,3806.0,1.698]
[1717253677570,3.0,3806.3,3806.0,1.698]
[1717253677775,7.43,3807.2,3806.0,1.698]
[1717253677940,2.62654,3807.3,3806.5,1.698]
[1717253677941,3.0,3807.1,3806.5,1.698]
[1717253678289,2.62671,3807.1,3806.5,1.698]
[1717253678461,3.0,3807.0,3806.5,1.698]
[1717253684290,3.0,3807.0,3806.9,1.698]
[1717253684587,3.55,3807.0,3806.9,1.698]
[1717253688605,5.1169,3807.8,3806.9,1.698]
[1717253688890,0.55,3807.3,3806.9,1.698]
[1717253692063,2.62661,3807.2,3806.9,1.698]
[1717253692265,0.55,3807.1,3806.9,1.698]
[1717253696174,2.62674,3807.0,3806.9,1.698]
[1717253696398,3.17674,3807.0,3806.9,1.698]
[1717253699513,3.17674,3807.0,3806.2,5.183]
[1717253699716,3.17674,3807.0,3806.9,0.709]
[1717253699887,3.494414,3807.0,3806.9,0.709]
[1717253702843,3.0,3807.5,3806.9,0.709]
[1717253703129,3.0,3807.4,3807.0,5.4552]
[1717253703344,3.0,3807.4,3807.3,0.709]
[1717253703500,3.0,3807.8,3807.3,1.7]
[1717253704601,2.62629,3807.7,3806.5,5.4552]
[1717253704930,2.62629,3807.7,3807.1,1.7]
[1717253705134,3.0,3807.6,3807.1,1.7]
[1717253706418,3.0,3807.6,3807.5,1.7]
[1717253707630,2.62594,3808.2,3807.5,1.7]
[1717253707831,3.55,3808.1,3807.5,1.7]
[1717253717455,3.55,3808.1,3807.9,1.7]
[1717253717946,3.0,3808.1,3807.9,1.7]
[1717253722553,3.0,3808.1,3807.2,5.4552]
[1717253722554,3.0,3808.1,3807.5,1.7]
[1717253723648,3.0,3808.1,3808.0,0.708]
[1717253723859,3.55,3808.1,3808.0,0.708]
[1717253724461,2.62613,3807.9,3807.2,5.4552]
[1717253724652,2.62613,3807.9,3807.8,0.708]
[1717253724842,6.17613,3807.9,3807.8,0.708]
[1717253726567,6.17613,3807.9,3806.6,2.07864453]
[1717253726725,2.62634,3807.6,3806.7,5.0598]
[1717253726934,2.62634,3807.6,3807.5,0.708]
[1717253730137,2.62634,3807.6,3806.3,2.62716]
[1717253730138,2.62663,3807.2,3806.3,5.2635]
[1717253730439,2.62663,3807.2,3807.1,0.708]
[1717253730771,5.62663,3807.2,3807.1,0.708]
[1717253733566,5.62663,3807.2,3806.3,5.2635]
[1717253733744,5.62663,3807.2,3807.1,0.708]
[1717253746332,7.43,3808.0,3807.1,5.9715]
[1717253746333,2.62627,3807.7,3807.1,5.9715]
[1717253746665,3.0,3807.6,3807.1,5.2635]
[1717253746847,3.0,3807.6,3807.5,0.708]
[1717253749300,3.0,3807.9,3807.5,0.708]
[1717253749447,3.0,3807.9,3807.8,0.708]
[1717253750791,3.0,3808.1,3807.8,0.708]
[1717253750993,3.0,3808.1,3808.0,0.708]
[1717253773313,7.43,3809.6,3808.0,0.708]
[1717253773475,7.43,3809.6,3809.5,0.708]
[1717253773476,2.62499,3809.6,3809.5,0.708]
[1717253776876,5.62499,3809.6,3809.5,0.708]
[1717253780327,5.62499,3809.6,3808.7,5.5501]
[1717253780514,3.0,3809.5,3808.7,5.5501]
[1717253781133,3.0,3809.5,3809.4,0.708]
[1717253782121,2.62509,3809.4,3808.7,5.5501]
[1717253782320,2.62509,3809.4,3809.3,0.708]
[1717253782481,5.62509,3809.4,3809.3,0.708]
[1717253787608,5.62509,3809.4,3808.2,5.5501]
[1717253787802,2.62523,3809.2,3808.2,5.5501]
[1717253788220,2.62523,3809.2,3809.1,0.708]
[1717253793639,3.0,3809.4,3809.1,0.708]
[1717253793950,3.0,3809.4,3809.3,0.708]
[1717253794750,3.0,3809.5,3809.3,0.708]
[1717253795050,2.62492,3809.7,3808.8,5.5799]
[1717253795051,3.0,3809.6,3809.4,0.708]
[1717253795217,0.55,3809.5,3809.4,0.708]
[1717253808570,0.55,3809.5,3808.5,5.5799]
[1717253808571,2.62522,3809.2,3808.5,5.5799]
[1717253808774,2.62522,3809.2,3809.1,0.708]
[1717253808935,3.17522,3809.2,3809.1,0.708]
[1717253822318,3.0,3809.6,3809.1,0.708]
[1717253822519,2.62492,3809.7,3809.0,5.284]
[1717253822520,0.55,3809.5,3809.4,0.708]
[1717253822820,3.0,3809.5,3809.4,0.708]
[1717253823018,0.55,3809.5,3809.4,0.708]
[1717253826322,7.79538,3810.2,3809.4,0.708]
[1717253826618,4.81008,3810.1,3809.0,5.284]
[1717253826818,3.55,3810.1,3810.0,0.708]
[1717253827188,3.0,3810.1,3810.0,0.708]
[1717253844515,2.62472,3810.0,3809.5,5.08]
[1717253844848,3.0,3809.9,3808.8,5.08]
[1717253845149,3.0,3809.9,3809.8,0.708]
[1717253847847,2.62481,3809.8,3809.3,5.08]
[1717253848054,2.62481,3809.8,3809.7,0.708]
[1717253848369,6.17481,3809.8,3809.7,0.708]
[1717253853454,2.62451,3810.3,3809.8,5.0602]
[1717253853781,2.62416,3810.8,3810.2,0.708]
[1717253853933,2.62416,3810.8,3810.7,0.708]
[1717253854123,3.19160867,3810.8,3810.7,0.708]
[1717253854320,2.62416,3810.8,3810.7,0.708]
[1717253854926,3.17416,3810.8,3810.7,0.708]
[1717253855127,6.17416,3810.8,3810.7,0.708]
[1717253867744,6.791576,3810.8,3810.7,0.708]
[1717253868080,6.791576,3810.8,3809.2,2.62521]
[1717253868081,2.62448,3810.3,3809.3,5.0602]
[1717253868287,2.62448,3810.3,3810.2,0.708]
[1717253868473,3.17448,3810.3,3810.2,0.708]
[1717253868977,3.17448,3810.3,3809.3,5.0602]
[1717253869176,2.62472,3810.0,3809.3,5.0602]
[1717253869367,2.62472,3810.0,3809.9,0.708]
[1717253879597,3.17472,3810.0,3809.9,0.708]
[1717253883000,3.17472,3810.0,3809.3,5.0602]
[1717253883166,3.17472,3810.0,3809.9,0.708]
[1717253884607,11.69402,3810.0,3809.9,0.708]
[1717253886765,11.69402,3810.0,3808.9,5.5801]
[1717253886966,2.62488,3809.7,3808.9,5.5801]
[1717253887288,2.62488,3809.7,3809.6,0.708]
[1717253888193,2.62517,3809.3,3808.6,2.07864453]
[1717253888392,0.55,3809.2,3808.5,5.5801]
[1717253888592,0.55,3809.2,3809.1,0.708]
[1717253891897,2.62484,3809.8,3809.1,5.9686]
[1717253892091,3.0,3809.7,3809.1,5.2606]
[1717253892409,3.0,3809.7,3809.6,0.708]
[1717253893308,2.62484,3809.8,3809.6,0.708]
[1717253896514,3.0,3810.1,3809.7,5.2606]
[1717253896812,3.0,3810.2,3810.0,0.708]
[1717253897111,0.55,3810.1,3809.7,5.2606]
[1717253897299,0.55,3810.1,3810.0,0.708]
[1717253898320,3.0,3810.2,3810.0,0.708]
[1717253910218,3.0,3810.2,3810.1,0.708]
[1717253912845,4.06934,3810.2,3810.1,0.708]
[1717253916055,2.62477,3809.9,3809.1,5.1178]
[1717253916211,2.62477,3809.9,3809.8,0.708]
[1717253916402,3.17477,3809.9,3809.8,0.708]
[1717253918918,8.24367,3809.9,3809.8,0.708]
[1717253919119,9.368037,3809.9,3809.8,0.708]
[1717253920252,8.24367,3809.9,3809.8,0.708]
[1717253922009,2.62477,3809.9,3809.8,0.708]
[1717253928056,3.0,3810.2,3809.8,0.708]
[1717253928263,0.55,3810.1,3809.6,5.1178]
[1717253928414,0.55,3810.2,3810.1,0.708]
[1717253934753,5.6411,3810.2,3810.1,0.708]
[1717253934926,9.767654,3810.2,3810.1,0.708]
[1717253940151,4.676554,3810.2,3810.1,0.708]
[1717253940358,0.55,3810.2,3810.1,0.708]
[1717253941964,3.0,3810.3,3810.1,0.708]
[1717253948869,3.0,3810.3,3809.6,5.079]
[1717253949027,3.0,3810.3,3810.2,0.708]
[1717253968549,3.0,3810.6,3810.2,0.708]
[1717253968748,3.0,3810.8,3810.6,0.708]
[1717253969084,0.55,3810.7,3810.6,0.708]
[1717253991428,3.0,3810.8,3810.6,0.708]
[1717253994233,2.62418,3810.7,3809.9,5.0534]
[1717253994396,3.0,3810.6,3809.9,5.0534]
[1717253994629,3.0,3810.6,3810.5,0.708]
[1717254000126,2.98689,3810.6,3810.5,0.708]
[1717254001497,2.62434,3810.5,3809.9,5.0534]
[1717254001702,2.62434,3810.5,3810.4,0.708]
[1717254001913,3.17434,3810.5,3810.4,0.708]
[1717254002303,6.17434,3810.5,3810.4,0.708]
[1717254003438,6.17434,3810.5,3809.7,5.3101]
[1717254003647,2.62449,3810.3,3809.4,5.3101]
[1717254003940,2.62449,3810.3,3810.2,0.708]
[1717254007380,2.62449,3810.3,3809.5,5.3101]
[1717254007644,2.62449,3810.3,3810.2,0.708]
[1717254008815,3.0,3810.5,3810.2,0.708]
[1717254009014,3.0,3810.7,3810.4,0.708]
[1717254009219,3.0,3810.7,3810.6,0.708]
[1717254009441,3.55,3810.7,3810.6,0.708]
[1717254017736,2.62417,3810.8,3810.6,0.708]
[1717254019946,3.0,3811.2,3810.6,0.708]
[1717254020134,5.537,3811.7,3811.1,0.708]
[1717254020345,5.537,3811.7,3811.6,0.708]
[1717254021370,2.62347,3811.8,3811.6,0.708]
[1717254022654,0.55,3811.7,3811.6,0.708]
[1717254024255,2.62347,3811.8,3811.6,0.708]
[1717254027186,3.0,3812.1,3811.6,0.708]
[1717254027386,3.0,3812.3,3812.0,0.708]
[1717254027625,3.0,3812.3,3812.2,0.708]
[1717254028484,3.55,3812.3,3812.2,0.708]
[1717254029784,2.62324,3812.1,3811.5,5.2308]
[1717254029966,0.55,3812.0,3811.0,5.5393]
[1717254030205,0.55,3812.0,3811.9,0.708]
[1717254030743,2.62336,3811.9,3811.0,5.5393]
[1717254031085,2.62358,3811.6,3810.9,2.07864453]
[1717254031248,2.62358,3811.6,3811.2,0.708]
[1717254031449,2.6237,3811.4,3811.3,0.708]
[1717254031669,3.1737,3811.4,3811.3,0.708]
[1717254036680,3.1737,3811.4,3810.3,5.5393]
[1717254037003,2.62398,3811.0,3810.9,0.708]
[1717254037361,3.17398,3811.0,3810.0,5.5393]
[1717254037555,2.62415,3810.8,3810.0,5.5393]
[1717254037761,2.62415,3810.8,3810.7,0.708]
[1717254037999,2.62415,3810.8,3810.0,5.5393]
[1717254038000,3.17415,3810.8,3810.0,5.5393]
[1717254038164,2.62415,3810.8,3810.7,0.708]
[1717254038367,3.17415,3810.8,3809.5,5.5393]
[1717254038679,2.62428,3810.6,3809.5,5.5393]
[1717254038989,2.62428,3810.6,3810.5,0.708]
[1717254039196,3.17428,3810.6,3810.5,0.708]
[1717254049388,3.17428,3810.6,3810.2,5.5393]
[1717254049584,3.17428,3810.6,3810.5,0.708]
[1717254050050,2.62392,3811.1,3810.5,0.708]
[1717254050321,3.0,3811.0,3810.2,5.5393]
[1717254050526,3.0,3811.0,3810.9,0.708]
[1717254050822,2.62409,3810.9,3810.2,5.5393]
[1717254051022,2.62409,3810.9,3810.8,0.708]
[1717254051228,5.62409,3810.9,3810.8,0.708]
[1717254051728,6.17409,3810.9,3809.8,5.2711]
[1717254052022,2.62419,3810.7,3809.8,5.2711]
[1717254052323,0.55,3810.6,3809.8,5.2711]
[1717254052521,0.55,3810.6,3810.5,0.708]
[1717254053985,0.55,3810.6,3809.8,5.2711]
[1717254054204,0.55,3810.6,3810.5,0.708]
[1717254060929,2.62448,3810.3,3809.5,5.2711]
[1717254061254,0.55,3810.2,3809.5,5.2711]
[1717254061451,0.55,3810.2,3810.1,0.708]
[1717254061731,0.55,3810.2,3809.5,5.2711]
[1717254061942,0.55,3810.2,3810.1,0.708]
[1717254064740,2.62448,3810.3,3810.1,0.708]
[1717254064915,2.62417,3810.8,3810.1,0.708]
[1717254065232,3.0,3810.7,3810.6,0.708]
[1717254068439,3.55,3810.7,3810.6,0.708]
[1717254068643,2.62437,3810.5,3809.8,5.2711]
[1717254068939,2.62437,3810.5,3810.4,0.708]
[1717254069150,3.17437,3810.5,3810.4,0.708]
[1717254069641,3.17437,3810.5,3809.6,5.3157]
[1717254069853,3.17437,3810.5,3810.4,0.708]
[1717254070725,2.62461,3810.1,3809.0,5.3157]
[1717254071133,2.62461,3810.1,3810.0,0.708]
[1717254071446,3.17461,3810.1,3810.0,0.708]
[1717254075463,3.17461,3810.1,3809.0,5.3157]
[1717254075750,2.62483,3809.8,3809.7,0.708]
[1717254076047,8.20923,3809.8,3809.7,0.708]
[1717254076814,8.20923,3809.8,3809.0,5.3157]
[1717254077148,8.20923,3809.8,3808.4,2.62575]
[1717254077149,2.62498,3809.6,3809.5,0.708]
[1717254077536,3.17498,3809.6,3809.5,0.708]
[1717254080138,3.17498,3809.6,3808.5,5.3157]
[1717254080457,7.65961,3809.3,3809.0,0.708]
[1717254080640,0.55,3809.2,3809.0,0.708]
[1717254081140,0.55,3809.2,3808.5,5.3157]
[1717254081453,0.55,3809.2,3809.0,0.708]
[1717254085622,0.55,3809.2,3808.5,5.3157]
[1717254086159,0.55,3809.2,3809.1,0.708]
[1717254086380,2.62529,3809.1,3809.0,0.708]
[1717254086535,3.17529,3809.1,3809.0,0.708]
[1717254090068,3.17529,3809.1,3808.5,5.3157]
[1717254090230,3.17529,3809.1,3809.0,0.708]
[1717254097077,3.17529,3809.1,3808.8,0.708]
[1717254097280,0.55,3809.0,3808.8,0.708]
[1717254103786,5.7722,3809.0,3808.8,0.708]
[1717254104148,3.708,3809.8,3808.8,0.708]
[1717254104149,2.62499,3809.6,3808.9,5.2848]
[1717254104353,7.43,3810.0,3809.6,5.2848]
[1717254104586,7.43,3810.0,3809.9,0.708]
[1717254104903,14.86429,3810.6,3809.9,0.708]
[1717254104904,2.62429,3810.6,3809.9,0.708]
[1717254105185,2.62429,3810.6,3810.4,0.708]
[1717254105370,2.886719,3810.6,3810.4,0.708]
[1717254105567,2.886719,3810.6,3810.2,0.708]
[1717254105955,2.886719,3810.6,3809.6,5.2848]
[1717254105956,2.886719,3810.6,3810.4,0.708]
[1717254107855,0.55,3810.5,3810.4,0.708]
[1717254116493,2.62429,3810.6,3810.4,0.708]
[1717254120189,2.62391,3811.1,3810.4,0.708]
[1717254120386,0.55,3811.0,3810.2,5.2407]
[1717254120588,0.55,3811.0,3810.9,0.708]
[1717254121333,2.62391,3811.1,3810.9,0.708]
[1717254127280,7.43,3811.9,3810.9,0.708]
[1717254127281,2.62361,3811.6,3810.9,0.708]
[1717254127483,0.55,3811.5,3810.8,5.2407]
[1717254127729,0.55,3811.5,3811.4,0.708]
[1717254131455,7.43,3811.9,3811.4,0.708]
[1717254131583,7.43,3811.9,3810.4,2.62436]
[1717254131584,0.55,3811.8,3810.4,2.62436]
[1717254131781,2.62326,3812.1,3811.7,0.708]
[1717254131983,2.62326,3812.1,3812.0,0.708]
[1717254133990,3.17326,3812.1,3810.8,5.4306]
[1717254134159,3.17326,3812.1,3811.7,0.708]
[1717254134160,5.9867,3812.0,3811.7,0.708]
[1717254134794,6.847696,3812.0,3811.7,0.708]
[1717254134994,5.9867,3812.0,3811.7,0.708]
[1717254135398,2.62336,3811.9,3811.7,0.708]
[1717254135598,0.55,3811.8,3811.7,0.708]
[1717254137796,2.62336,3811.9,3811.7,0.708]
[1717254143121,2.62305,3812.4,3811.7,0.708]
[1717254143452,0.55,3812.3,3811.4,5.4306]
[1717254143658,0.55,3812.3,3812.2,0.708]
[1717254144653,2.62321,3812.2,3810.8,5.4306]
[1717254144958,5.4367,3812.0,3811.9,0.708]
[1717254145130,5.9867,3812.0,3811.9,0.708]
[1717254146740,5.9867,3812.0,3811.7,0.708]
[1717254146934,0.55,3811.9,3811.7,0.708]
[1717254149249,0.55,3811.9,3810.4,3.0]
[1717254149250,6.1979,3811.8,3809.8,5.1644]
[1717254149376,0.61560306,3811.7,3809.8,5.1644]
[1717254149555,3.61560306,3811.7,3810.7,0.708]
[1717254149986,2.62387,3811.2,3810.7,0.708]
[1717254150267,2.62399,3811.0,3810.7,0.708]
[1717254153194,2.62399,3811.0,3810.9,0.708]
[1717254153394,3.17399,3811.0,3810.9,0.708]
[1717254157583,3.17399,3811.0,3810.0,5.1644]
[1717254157984,3.17399,3811.0,3810.8,0.708]
[1717254167039,3.17399,3811.0,3809.4,5.1644]
[1717254167040,2.62459,3810.2,3809.4,5.1644]
[1717254167221,2.62459,3810.2,3809.8,0.708]
[1717254167420,2.62467,3810.0,3809.7,0.708]
[1717254167738,2.62467,3810.0,3809.5,0.708]
[1717254167903,0.55,3809.9,3809.5,0.708]
[1717254168417,0.55,3809.9,3809.7,0.708]
[1717254171860,2.62467,3810.0,3809.7,0.708]
[1717254172035,2.62434,3810.5,3809.9,0.708]
[1717254172359,2.62434,3810.5,3809.7,5.4277]
[1717254172360,2.62434,3810.5,3810.4,0.708]
[1717254172559,5.62434,3810.5,3810.4,0.708]
[1717254172780,2.62434,3810.5,3810.4,0.708]
[1717254173087,2.62434,3810.5,3809.7,5.4277]
[1717254173088,2.62434,3810.5,3810.2,0.708]
[1717254173526,2.62446,3810.3,3810.0,0.708]
[1717254173729,0.55,3810.2,3810.0,0.708]
[1717254179777,0.55,3810.2,3810.1,0.708]
[1717254194279,1.3,3810.2,3810.1,0.708]
[1717254199399,6.3836,3810.2,3810.1,0.708]
[1717254199895,6.3836,3810.2,3809.9,0.708]
[1717254202110,6.3836,3810.2,3810.1,0.708]
[1717254202269,1.3,3810.2,3810.1,0.708]
[1717254203376,0.75,3810.2,3810.1,0.708]
[1717254203576,1.3,3810.2,3810.1,0.708]
[1717254204899,6.3836,3810.2,3809.9,0.708]
[1717254205102,0.55,3810.1,3809.9,0.708]
[1717254207912,0.55,3810.1,3809.4,5.4277]
[1717254208074,0.55,3810.1,3809.9,0.708]
[1717254212786,0.75,3810.2,3809.9,0.708]
[1717254212985,0.75,3810.2,3810.1,0.708]
[1717254213229,1.3,3810.2,3810.1,0.708]
[1717254214525,0.75,3810.2,3810.1,0.708]
[1717254220117,2.62417,3810.8,3810.1,0.708]
[1717254220429,2.5234092,3810.6,3809.7,5.3618]
[1717254220628,0.55,3810.5,3809.7,5.3618]
[1717254220803,0.55,3810.5,3810.4,0.708]
[1717254221189,2.62396,3811.1,3810.4,6.0698]
[1717254221519,2.62396,3811.1,3811.0,0.708]
[1717254222710,3.17396,3811.1,3811.0,0.708]
[1717254223508,5.1194,3811.0,3810.9,0.708]
[1717254223734,5.6694,3811.0,3810.9,0.708]
[1717254226030,2.62409,3810.9,3810.1,5.3618]
[1717254226231,0.55,3810.8,3809.9,5.3618]
[1717254226536,0.55,3810.8,3810.7,0.708]
[1717254227039,0.55,3810.8,3810.3,0.708]
[1717254227040,2.62429,3810.6,3810.3,0.708]
[1717254227337,5.6694,3810.5,3810.3,0.708]
[1717254228331,5.6694,3810.5,3809.6,7.44044453]
[1717254228543,5.6694,3810.5,3810.3,0.708]
[1717254238761,5.6694,3810.5,3809.6,5.3618]
[1717254239058,5.6694,3810.5,3810.3,0.708]
[1717254240259,5.6694,3810.5,3810.4,0.708]
[1717254240757,2.62453,3810.2,3810.0,0.708]
[1717254240927,0.55,3810.1,3810.0,0.708]
[1717254241752,2.62453,3810.2,3810.0,0.708]
[1717254250473,5.4708,3810.1,3809.2,5.1055]
[1717254250683,5.4708,3810.1,3810.0,0.708]
[1717254255115,2.62471,3810.0,3809.2,5.1055]
[1717254255309,2.62471,3810.0,3809.9,0.708]
[1717254255683,3.17471,3810.0,3809.9,0.708]
[1717254278137,0.55,3810.0,3809.9,0.708]
[1717254278341,0.55,3810.1,3809.9,0.708]
[1717254278766,0.0499506,3810.2,3809.9,0.708]
[1717254278965,0.0499506,3810.2,3810.1,0.708]
[1717254279176,0.5999506,3810.2,3810.1,0.708]
[1717254286591,5.9350506,3810.2,3810.1,0.708]
[1717254289653,0.5999506,3810.2,3810.1,0.708]
[1717254289891,0.0499506,3810.2,3810.1,0.708]
[1717254292328,2.62464,3810.1,3808.9,0.4664]
[1717254292529,2.56122564,3810.0,3809.5,0.708]
[1717254292736,2.56122564,3810.0,3809.7,0.708]
[1717254293039,0.55,3809.9,3809.7,0.708]
[1717254294101,2.62481,3809.8,3809.7,0.708]
[1717254294302,3.17481,3809.8,3809.7,0.708]
[1717254302167,3.17481,3809.8,3808.9,0.4664]
[1717254302352,0.55,3809.7,3808.9,0.4664]
[1717254302551,0.55,3809.7,3809.6,0.708]
[1717254303439,0.61562584,3809.7,3809.6,0.708]
[1717254304541,0.55,3809.7,3809.6,0.708]
[1717254304729,0.55,3809.7,3808.5,2.6257]
[1717254304730,2.4956,3809.5,3808.6,0.4664]
[1717254304932,0.06563013,3809.4,3808.6,0.4664]
[1717254305166,2.62508,3809.4,3809.3,0.708]
[1717254305340,3.17508,3809.4,3809.3,0.708]
[1717254308889,3.17508,3809.4,3808.6,0.4664]
[1717254309185,3.17508,3809.4,3809.3,0.708]
[1717254309545,3.92508,3809.4,3809.3,0.708]
[1717254320171,3.92508,3809.4,3808.3,0.4664]
[1717254320515,3.92508,3809.4,3809.3,0.708]
[1717254324412,3.17508,3809.4,3809.3,0.708]
[1717254326721,3.17508,3809.4,3808.1,2.07864453]
[1717254326722,2.3285,3808.9,3808.1,2.07864453]
[1717254326881,2.3285,3808.9,3807.9,0.4664]
[1717254326882,2.6255,3808.8,3807.9,0.4664]
[1717254327217,2.6255,3808.8,3808.7,0.708]
[1717254327387,3.1755,3808.8,3808.7,0.708]
[1717254330050,3.1755,3808.8,3807.9,0.4664]
[1717254330234,3.1755,3808.8,3808.7,0.708]
[1717254332961,3.1755,3808.8,3807.9,0.4664]
[1717254333158,3.1755,3808.8,3808.7,0.708]
[1717254338030,3.1755,3808.8,3807.9,0.4664]
[1717254338336,0.55,3808.7,3807.9,0.4664]
[1717254338538,0.55,3808.7,3808.6,0.708]
[1717254338971,0.55,3808.7,3807.9,0.4664]
[1717254339166,0.55,3808.7,3808.6,0.708]
[1717254339559,2.62565,3808.6,3807.6,0.4664]
[1717254339737,2.62565,3808.6,3808.5,0.708]
[1717254339946,3.17565,3808.6,3808.5,0.708]
[1717254351758,2.374,3808.5,3807.6,0.4664]
[1717254352059,2.374,3808.5,3807.5,2.07864453]
[1717254352060,3.17577,3808.4,3808.1,0.708]
[1717254352266,3.17577,3808.4,3807.5,2.07864453]
[1717254352267,3.17577,3808.4,3808.3,0.708]
[1717254362009,3.730747,3808.4,3807.3,0.4664]
[1717254362216,2.62608,3808.0,3807.3,0.4664]
[1717254362446,2.62608,3808.0,3807.9,0.708]
[1717254362607,3.17608,3808.0,3807.9,0.708]
[1717254383538,5.65488,3808.0,3806.8,0.4664]
[1717254383749,5.65488,3808.0,3807.6,0.708]
[1717254383750,2.62623,3807.8,3807.6,0.708]
[1717254384067,0.06565947,3807.7,3807.6,0.708]
[1717254384361,2.62623,3807.8,3806.8,0.4664]
[1717254384662,0.06566045,3807.7,3807.6,0.708]
[1717254384845,2.62623,3807.8,3807.6,0.708]
[1717254391259,2.62587,3808.3,3807.7,0.4664]
[1717254391444,2.62587,3808.3,3808.2,0.708]
[1717254391645,2.62554,3808.8,3808.2,1.1744]
[1717254391843,2.62554,3808.8,3808.7,0.708]
[1717254392059,2.888094,3808.8,3808.7,0.708]
[1717254392242,2.62554,3808.8,3808.7,0.708]
[1717254392967,3.17554,3808.8,3808.7,0.708]
[1717254396273,8.22817562,3809.3,3808.7,0.708]
[1717254396471,3.0,3809.2,3808.2,0.4664]
[1717254396636,3.0,3809.2,3809.1,0.708]
[1717254397567,2.77047562,3809.3,3809.1,0.708]
[1717254397875,0.55,3809.2,3809.1,0.708]
[1717254405387,2.77047562,3809.3,3809.1,0.708]
[1717254407971,0.14528562,3809.3,3809.1,0.708]